[Event "Early-Titled-Tuesday-Blitz-July-09-2024"]
[Site "Chess.com"]
[Date "2024.07.09"]
[Round "6"]
[White "Schack-Hugo"]
[Black "Ordekalog"]
[Result "1-0"]
[WhiteElo "2557"]
[BlackElo "2710"]
[TimeControl "180+1"]
[EndTime "9:07:51 PDT"]
[Termination "Schack-Hugo won by resignation"]

1. Nf3 {[%clk 0:03:00.9]} 1... d5 {[%clk 0:02:59.1]} 2. b3 {[%clk 0:03:00.8]}
2... c5 {[%clk 0:02:58.6]} 3. e3 {[%clk 0:03:00]} 3... e6 {[%clk 0:02:57.3]} 4.
Bb2 {[%clk 0:03:00.1]} 4... Nf6 {[%clk 0:02:57.1]} 5. Bb5+ {[%clk 0:02:58.4]}
5... Bd7 {[%clk 0:02:56.6]} 6. a4 {[%clk 0:02:58.7]} 6... Bd6 {[%clk 0:02:56]}
7. O-O {[%clk 0:02:57.8]} 7... Nc6 {[%clk 0:02:55.1]} 8. d4 {[%clk 0:02:57.3]}
8... a6 {[%clk 0:02:51.5]} 9. Bd3 {[%clk 0:02:56.4]} 9... O-O {[%clk 0:02:46.3]}
10. Ne5 {[%clk 0:02:54.6]} 10... cxd4 {[%clk 0:02:40.9]} 11. exd4 {[%clk
0:02:54.2]} 11... Qc7 {[%clk 0:02:31.3]} 12. f4 {[%clk 0:02:52.7]} 12... Nb4
{[%clk 0:02:29.1]} 13. Nd2 {[%clk 0:02:50.1]} 13... Nxd3 {[%clk 0:02:27.7]} 14.
cxd3 {[%clk 0:02:51]} 14... g6 {[%clk 0:02:18.9]} 15. Ndf3 {[%clk 0:02:45.1]}
15... Nh5 {[%clk 0:02:15.1]} 16. g3 {[%clk 0:02:44.3]} 16... Ng7 {[%clk
0:02:13.6]} 17. Ng4 {[%clk 0:02:42.8]} 17... Be7 {[%clk 0:02:10.6]} 18. Ne3
{[%clk 0:02:41.6]} 18... Rfc8 {[%clk 0:02:09.1]} 19. Ne5 {[%clk 0:02:34.2]}
19... Be8 {[%clk 0:02:08.6]} 20. N3g4 {[%clk 0:02:29.5]} 20... f6 {[%clk
0:02:01.3]} 21. Nh6+ {[%clk 0:02:27]} 21... Kf8 {[%clk 0:02:00.2]} 22. Rc1
{[%clk 0:02:14.9]} 22... Qb6 {[%clk 0:01:57.5]} 23. Rxc8 {[%clk 0:02:10]} 23...
Rxc8 {[%clk 0:01:57.3]} 24. Nf3 {[%clk 0:02:00.9]} 24... Bxa4 {[%clk 0:01:50.3]}
25. bxa4 {[%clk 0:01:57.9]} 25... Qxb2 {[%clk 0:01:51.2]} 26. a5 {[%clk
0:01:53.1]} 26... Bb4 {[%clk 0:01:47.6]} 27. Qa1 {[%clk 0:01:39.3]} 27... Rc2
{[%clk 0:01:21.2]} 28. Qa4 {[%clk 0:01:39]} 28... Rg2+ {[%clk 0:01:03.3]} 29.
Kh1 {[%clk 0:01:38.2]} 29... Rf2 {[%clk 0:01:03.6]} 30. Rxf2 {[%clk 0:01:33.4]}
30... Qxf2 {[%clk 0:01:04.5]} 31. Qxb4+ {[%clk 0:01:33.4]} 31... Ke8 {[%clk
0:01:04.7]} 32. Ng1 {[%clk 0:01:29.9]} 32... Nh5 {[%clk 0:00:57.7]} 33. Qxb7
{[%clk 0:01:09.9]} 33... Nxg3+ {[%clk 0:00:44.7]} 34. hxg3 {[%clk 0:01:09.5]}
34... Qxg3 {[%clk 0:00:45.2]} 35. Qf7+ {[%clk 0:01:09]} 35... Kd8 {[%clk
0:00:44.9]} 36. Qxf6+ {[%clk 0:01:02.1]} 36... Kd7 {[%clk 0:00:45]} 37. Nf7
{[%clk 0:00:58.1]} 1-0

[Event "Early-Titled-Tuesday-Blitz-July-09-2024"]
[Site "Chess.com"]
[Date "2024.07.09"]
[Round "6"]
[White "Bkmzzzzz"]
[Black "Alenzer"]
[Result "1-0"]
[WhiteElo "2423"]
[BlackElo "2172"]
[TimeControl "180+1"]
[EndTime "9:07:51 PDT"]
[Termination "Bkmzzzzz won on time"]

1. e4 {[%clk 0:03:00.9]} 1... c5 {[%clk 0:02:59.6]} 2. Nf3 {[%clk 0:02:59.3]}
2... e6 {[%clk 0:02:59.6]} 3. d3 {[%clk 0:02:59]} 3... Nc6 {[%clk 0:02:58.8]} 4.
g3 {[%clk 0:02:59]} 4... g6 {[%clk 0:02:58.5]} 5. Bg2 {[%clk 0:02:59.1]} 5...
Bg7 {[%clk 0:02:58.9]} 6. O-O {[%clk 0:02:59.6]} 6... Nge7 {[%clk 0:02:59.1]} 7.
Re1 {[%clk 0:02:59]} 7... O-O {[%clk 0:02:59.1]} 8. Nbd2 {[%clk 0:02:59.1]} 8...
d5 {[%clk 0:02:59.6]} 9. e5 {[%clk 0:02:58.2]} 9... f6 {[%clk 0:02:57.7]} 10.
exf6 {[%clk 0:02:57.6]} 10... Bxf6 {[%clk 0:02:58]} 11. c3 {[%clk 0:02:56.2]}
11... Bg7 {[%clk 0:02:46.1]} 12. Nf1 {[%clk 0:02:55.6]} 12... Qc7 {[%clk
0:02:17.1]} 13. Bf4 {[%clk 0:02:55]} 13... e5 {[%clk 0:02:12.9]} 14. Bg5 {[%clk
0:02:46.9]} 14... Bg4 {[%clk 0:01:53.6]} 15. h3 {[%clk 0:02:41.8]} 15... Bxf3
{[%clk 0:01:50.8]} 16. Bxf3 {[%clk 0:02:42.7]} 16... Rad8 {[%clk 0:01:23.7]} 17.
Bg2 {[%clk 0:02:38.3]} 17... h6 {[%clk 0:01:20.2]} 18. Be3 {[%clk 0:02:35.1]}
18... b6 {[%clk 0:01:16.2]} 19. Qg4 {[%clk 0:02:16.1]} 19... Kh7 {[%clk
0:01:13.5]} 20. Rad1 {[%clk 0:02:11.5]} 20... Nf5 {[%clk 0:01:13.2]} 21. Bc1
{[%clk 0:02:10.4]} 21... Qf7 {[%clk 0:01:07]} 22. Re2 {[%clk 0:01:47.4]} 22...
h5 {[%clk 0:00:54.3]} 23. Qf3 {[%clk 0:01:47.3]} 23... Qe6 {[%clk 0:00:43.5]}
24. Ree1 {[%clk 0:01:23.5]} 24... Nfd4 {[%clk 0:00:13.5]} 25. Qe3 {[%clk
0:01:18.8]} 25... Nc2 {[%clk 0:00:06.7]} 26. Qd2 {[%clk 0:01:12.2]} 26... Nxe1
{[%clk 0:00:04.1]} 27. Rxe1 {[%clk 0:01:13.1]} 27... e4 {[%clk 0:00:02.1]} 28.
dxe4 {[%clk 0:01:02.4]} 1-0

[Event "Early-Titled-Tuesday-Blitz-July-09-2024"]
[Site "Chess.com"]
[Date "2024.07.09"]
[Round "6"]
[White "burbur555"]
[Black "SVijayalakshmi"]
[Result "1-0"]
[WhiteElo "2739"]
[BlackElo "2551"]
[TimeControl "180+1"]
[EndTime "9:07:53 PDT"]
[Termination "burbur555 won by resignation"]

1. Nf3 {[%clk 0:03:00.9]} 1... Nf6 {[%clk 0:02:59.2]} 2. c4 {[%clk 0:03:00.1]}
2... g6 {[%clk 0:02:58.9]} 3. d4 {[%clk 0:02:59.1]} 3... Bg7 {[%clk 0:02:59]} 4.
Bf4 {[%clk 0:02:59.1]} 4... O-O {[%clk 0:02:58.5]} 5. e3 {[%clk 0:02:59.2]} 5...
d6 {[%clk 0:02:58.8]} 6. Nc3 {[%clk 0:02:58.3]} 6... Nbd7 {[%clk 0:02:53.8]} 7.
h3 {[%clk 0:02:56]} 7... Re8 {[%clk 0:02:52.5]} 8. Be2 {[%clk 0:02:54.6]} 8...
c6 {[%clk 0:02:48.9]} 9. O-O {[%clk 0:02:53.3]} 9... Qa5 {[%clk 0:02:42.3]} 10.
Bh2 {[%clk 0:02:47.8]} 10... e5 {[%clk 0:02:41.8]} 11. Rb1 {[%clk 0:02:44.1]}
11... e4 {[%clk 0:02:35.2]} 12. Nd2 {[%clk 0:02:42.5]} 12... d5 {[%clk
0:02:35.1]} 13. b4 {[%clk 0:02:40.9]} 13... Qd8 {[%clk 0:02:34.4]} 14. b5 {[%clk
0:02:40.5]} 14... Nf8 {[%clk 0:02:29.5]} 15. bxc6 {[%clk 0:02:39.8]} 15... bxc6
{[%clk 0:02:29.3]} 16. cxd5 {[%clk 0:02:32.4]} 16... cxd5 {[%clk 0:02:29.4]} 17.
Nb5 {[%clk 0:02:32.6]} 17... Ne6 {[%clk 0:02:22.5]} 18. Nd6 {[%clk 0:02:29.5]}
18... Re7 {[%clk 0:02:22.8]} 19. Nxc8 {[%clk 0:02:27]} 19... Rxc8 {[%clk
0:02:20.9]} 20. Qa4 {[%clk 0:02:24.4]} 20... Qe8 {[%clk 0:01:58.7]} 21. Bb5
{[%clk 0:02:17.5]} 21... Qd8 {[%clk 0:01:56.4]} 22. Nb3 {[%clk 0:02:14.5]} 22...
Ne8 {[%clk 0:01:50.7]} 23. Na5 {[%clk 0:02:13.2]} 23... f5 {[%clk 0:01:36.6]}
24. Nc6 {[%clk 0:02:11.7]} 24... Rxc6 {[%clk 0:01:36.3]} 25. Bxc6 {[%clk
0:02:11.2]} 25... f4 {[%clk 0:01:36.7]} 26. Qb5 {[%clk 0:01:52.4]} 26... N8c7
{[%clk 0:01:25.1]} 27. Qb8 {[%clk 0:01:52.2]} 27... Qxb8 {[%clk 0:01:20.1]} 28.
Rxb8+ {[%clk 0:01:50.6]} 28... Kf7 {[%clk 0:01:21]} 29. Rb7 {[%clk 0:01:48.3]}
29... a6 {[%clk 0:01:18.5]} 30. Rc1 {[%clk 0:01:40]} 30... g5 {[%clk 0:01:17.7]}
31. Kf1 {[%clk 0:01:39]} 31... h5 {[%clk 0:01:09.4]} 32. Ke2 {[%clk 0:01:38.8]}
32... h4 {[%clk 0:01:08.2]} 33. Ba4 {[%clk 0:01:18.4]} 33... Bh6 {[%clk
0:01:01.8]} 34. Rc6 {[%clk 0:01:14.5]} 34... Kf6 {[%clk 0:00:53.2]} 35. Rd6
{[%clk 0:01:13.1]} 35... Rf7 {[%clk 0:00:33]} 36. Bb3 {[%clk 0:01:11.1]} 36...
Kf5 {[%clk 0:00:29.3]} 37. Bxd5 {[%clk 0:01:07.1]} 37... Nxd5 {[%clk 0:00:24.3]}
38. Rxf7+ {[%clk 0:01:05.7]} 38... Kg6 {[%clk 0:00:25.2]} 39. Rxe6+ {[%clk
0:01:03.8]} 39... Kxf7 {[%clk 0:00:25.4]} 40. Rxh6 {[%clk 0:01:03.5]} 1-0

[Event "Early-Titled-Tuesday-Blitz-July-09-2024"]
[Site "Chess.com"]
[Date "2024.07.09"]
[Round "6"]
[White "Pavlov_Sergey"]
[Black "AsaHoffmann"]
[Result "1-0"]
[WhiteElo "2665"]
[BlackElo "2400"]
[TimeControl "180+1"]
[EndTime "9:07:56 PDT"]
[Termination "Pavlov_Sergey won by resignation"]

1. c4 {[%clk 0:03:00.9]} 1... Nf6 {[%clk 0:02:56.4]} 2. Nf3 {[%clk 0:03:00.2]}
2... d6 {[%clk 0:02:52.2]} 3. d4 {[%clk 0:02:58.8]} 3... c6 {[%clk 0:02:51.5]}
4. g3 {[%clk 0:02:58]} 4... Bf5 {[%clk 0:02:50.2]} 5. Bg2 {[%clk 0:02:57.7]}
5... h6 {[%clk 0:02:50]} 6. O-O {[%clk 0:02:56.8]} 6... Nbd7 {[%clk 0:02:49.7]}
7. Re1 {[%clk 0:02:48]} 7... e5 {[%clk 0:02:49.1]} 8. Nc3 {[%clk 0:02:46.7]}
8... e4 {[%clk 0:02:48.7]} 9. Nd2 {[%clk 0:02:32.3]} 9... d5 {[%clk 0:02:48.4]}
10. Qb3 {[%clk 0:02:31.6]} 10... Qb6 {[%clk 0:02:41.4]} 11. cxd5 {[%clk
0:02:20.4]} 11... Qxb3 {[%clk 0:02:40.3]} 12. axb3 {[%clk 0:02:19.5]} 12... cxd5
{[%clk 0:02:40.1]} 13. Nb5 {[%clk 0:02:19.5]} 13... Kd8 {[%clk 0:02:20.3]} 14.
Nxa7 {[%clk 0:02:13.6]} 14... Rb8 {[%clk 0:01:54.5]} 15. Nf1 {[%clk 0:02:09.8]}
15... Bb4 {[%clk 0:01:49.7]} 16. Rd1 {[%clk 0:02:03.8]} 16... Ke7 {[%clk
0:01:48.6]} 17. Bf4 {[%clk 0:02:00.1]} 17... Ra8 {[%clk 0:01:47.7]} 18. Nb5
{[%clk 0:01:53.2]} 18... g5 {[%clk 0:01:46.3]} 19. Be5 {[%clk 0:01:48.2]} 19...
Rxa1 {[%clk 0:01:37.1]} 20. Rxa1 {[%clk 0:01:47.5]} 20... Nxe5 {[%clk
0:01:36.9]} 21. dxe5 {[%clk 0:01:47.3]} 21... Nd7 {[%clk 0:01:36.9]} 22. Ne3
{[%clk 0:01:24.6]} 22... Be6 {[%clk 0:01:32.9]} 23. Nc7 {[%clk 0:01:24.5]} 23...
Nb6 {[%clk 0:01:23.7]} 24. Ra7 {[%clk 0:01:16.2]} 24... Rc8 {[%clk 0:01:17.8]}
25. Rxb7 {[%clk 0:01:13]} 25... Kf8 {[%clk 0:00:51]} 26. Nxe6+ {[%clk
0:01:10.4]} 26... fxe6 {[%clk 0:00:50.7]} 27. Rxb6 {[%clk 0:01:10.8]} 27... Rc1+
{[%clk 0:00:48.4]} 28. Nf1 {[%clk 0:00:49.2]} 28... Bc5 {[%clk 0:00:45.8]} 29.
Rxe6 {[%clk 0:00:49.1]} 29... e3 {[%clk 0:00:39.5]} 30. Bxd5 {[%clk 0:00:38.7]}
30... exf2+ {[%clk 0:00:37.4]} 31. Kg2 {[%clk 0:00:39.1]} 31... Rc2 {[%clk
0:00:35.2]} 32. Bc4 {[%clk 0:00:38.3]} 32... Bd4 {[%clk 0:00:31.4]} 33. Rxh6
{[%clk 0:00:36.1]} 1-0

[Event "Early-Titled-Tuesday-Blitz-July-09-2024"]
[Site "Chess.com"]
[Date "2024.07.09"]
[Round "6"]
[White "GrotBchess"]
[Black "sofaceindisguise"]
[Result "0-1"]
[WhiteElo "2596"]
[BlackElo "2769"]
[TimeControl "180+1"]
[EndTime "9:07:57 PDT"]
[Termination "sofaceindisguise won by resignation"]

1. e4 {[%clk 0:03:00.9]} 1... c5 {[%clk 0:02:59.8]} 2. Nf3 {[%clk 0:03:00]} 2...
d6 {[%clk 0:03:00.4]} 3. Bb5+ {[%clk 0:02:59.5]} 3... Nd7 {[%clk 0:02:59.7]} 4.
c3 {[%clk 0:02:58.6]} 4... a6 {[%clk 0:02:58.8]} 5. Ba4 {[%clk 0:02:57.3]} 5...
b5 {[%clk 0:02:45.4]} 6. Bc2 {[%clk 0:02:56]} 6... Bb7 {[%clk 0:02:45.7]} 7. O-O
{[%clk 0:02:55.8]} 7... g6 {[%clk 0:02:43.7]} 8. d4 {[%clk 0:02:55]} 8... Bg7
{[%clk 0:02:41.1]} 9. Qe2 {[%clk 0:02:53.1]} 9... e5 {[%clk 0:02:23]} 10. dxe5
{[%clk 0:02:51.3]} 10... dxe5 {[%clk 0:02:21.9]} 11. a4 {[%clk 0:02:45.2]} 11...
Bc6 {[%clk 0:02:21.2]} 12. axb5 {[%clk 0:02:34.3]} 12... axb5 {[%clk 0:02:22.1]}
13. Rxa8 {[%clk 0:02:29.7]} 13... Qxa8 {[%clk 0:02:23]} 14. Na3 {[%clk
0:02:28.2]} 14... Qb7 {[%clk 0:02:23.2]} 15. Bd3 {[%clk 0:02:25.3]} 15... c4
{[%clk 0:02:22.7]} 16. Bb1 {[%clk 0:02:20]} 16... Ngf6 {[%clk 0:02:22.9]} 17.
Re1 {[%clk 0:02:18.5]} 17... O-O {[%clk 0:02:22.7]} 18. Bg5 {[%clk 0:02:13.7]}
18... Re8 {[%clk 0:02:20.4]} 19. Nd2 {[%clk 0:02:12]} 19... Nc5 {[%clk
0:02:18.8]} 20. Bxf6 {[%clk 0:02:06.4]} 20... Bxf6 {[%clk 0:02:19.7]} 21. Nc2
{[%clk 0:02:06.3]} 21... Nd3 {[%clk 0:02:09.7]} 22. Rf1 {[%clk 0:01:59.5]} 22...
Nxb2 {[%clk 0:02:09.4]} 23. Nb4 {[%clk 0:01:58]} 23... Na4 {[%clk 0:02:10]} 24.
Qe3 {[%clk 0:01:47]} 24... Be7 {[%clk 0:02:00.5]} 25. Nf3 {[%clk 0:01:39.9]}
25... Bc5 {[%clk 0:01:57.4]} 26. Qh6 {[%clk 0:01:38.3]} 26... f6 {[%clk
0:01:44]} 27. Qd2 {[%clk 0:01:20.6]} 27... Bxb4 {[%clk 0:01:39.9]} 28. cxb4
{[%clk 0:01:19.3]} 28... Qe7 {[%clk 0:01:40.1]} 29. Bc2 {[%clk 0:01:13.1]} 29...
Rd8 {[%clk 0:01:40.4]} 30. Qe1 {[%clk 0:01:03.1]} 30... Nb2 {[%clk 0:01:35.6]}
31. Qc3 {[%clk 0:00:46.1]} 31... Nd3 {[%clk 0:01:25.2]} 32. Rd1 {[%clk
0:00:33.6]} 32... Bxe4 {[%clk 0:01:22.6]} 33. Nd2 {[%clk 0:00:27.4]} 33... Bf5
{[%clk 0:01:21.8]} 34. g4 {[%clk 0:00:18.4]} 34... Bxg4 {[%clk 0:01:18.8]} 35.
Ne4 {[%clk 0:00:18.3]} 35... Bxd1 {[%clk 0:01:18.3]} 36. Bxd1 {[%clk 0:00:18.5]}
36... Nxb4 {[%clk 0:01:15.3]} 37. Bg4 {[%clk 0:00:17.9]} 37... Nd3 {[%clk
0:01:14.3]} 38. Qa1 {[%clk 0:00:15.6]} 38... f5 {[%clk 0:01:13.9]} 39. Qa6
{[%clk 0:00:14.1]} 39... fxe4 {[%clk 0:01:11.5]} 40. Be6+ {[%clk 0:00:13.4]}
40... Kh8 {[%clk 0:01:12.1]} 0-1

[Event "Early-Titled-Tuesday-Blitz-July-09-2024"]
[Site "Chess.com"]
[Date "2024.07.09"]
[Round "6"]
[White "Pitomina"]
[Black "Alexchess1984"]
[Result "0-1"]
[WhiteElo "2584"]
[BlackElo "2794"]
[TimeControl "180+1"]
[EndTime "9:07:58 PDT"]
[Termination "Alexchess1984 won by resignation"]

1. e4 {[%clk 0:03:00]} 1... e6 {[%clk 0:03:00.1]} 2. d4 {[%clk 0:02:59.1]} 2...
d5 {[%clk 0:03:01]} 3. Nd2 {[%clk 0:02:59.4]} 3... Nf6 {[%clk 0:02:58.8]} 4. e5
{[%clk 0:02:57.1]} 4... Nfd7 {[%clk 0:02:58.9]} 5. Bd3 {[%clk 0:02:57.1]} 5...
c5 {[%clk 0:02:56.9]} 6. c3 {[%clk 0:02:57.4]} 6... Nc6 {[%clk 0:02:55.3]} 7.
Ne2 {[%clk 0:02:57.2]} 7... cxd4 {[%clk 0:02:54.4]} 8. cxd4 {[%clk 0:02:58.1]}
8... f6 {[%clk 0:02:53.4]} 9. exf6 {[%clk 0:02:59]} 9... Qxf6 {[%clk 0:02:53.2]}
10. Nf3 {[%clk 0:02:59]} 10... h6 {[%clk 0:02:52]} 11. O-O {[%clk 0:02:54.8]}
11... Bd6 {[%clk 0:02:51.4]} 12. Nc3 {[%clk 0:02:54.7]} 12... O-O {[%clk
0:02:50.2]} 13. Be3 {[%clk 0:02:50.3]} 13... Rd8 {[%clk 0:02:48.6]} 14. Re1
{[%clk 0:02:44.6]} 14... Nf8 {[%clk 0:02:48.3]} 15. Bb5 {[%clk 0:02:25.2]} 15...
Bd7 {[%clk 0:02:43.8]} 16. Bxc6 {[%clk 0:02:25.2]} 16... Bxc6 {[%clk 0:02:38.2]}
17. Ne5 {[%clk 0:02:26.1]} 17... Bxe5 {[%clk 0:02:35.6]} 18. dxe5 {[%clk
0:02:27]} 18... Qf5 {[%clk 0:02:31.2]} 19. g4 {[%clk 0:01:25.5]} 19... Qf7
{[%clk 0:02:23.4]} 20. Qd4 {[%clk 0:01:25.2]} 20... Ng6 {[%clk 0:02:22.3]} 21.
f4 {[%clk 0:01:24.9]} 21... Nh4 {[%clk 0:02:21.4]} 22. Rf1 {[%clk 0:01:24.8]}
22... Qg6 {[%clk 0:02:19.6]} 23. h3 {[%clk 0:01:24.6]} 23... Rac8 {[%clk
0:02:13.6]} 24. Kh2 {[%clk 0:01:19.8]} 24... Qc2+ {[%clk 0:02:04]} 25. Kg3
{[%clk 0:01:14.4]} 25... Ng6 {[%clk 0:01:50.8]} 26. f5 {[%clk 0:01:12.8]} 26...
exf5 {[%clk 0:01:47.3]} 27. gxf5 {[%clk 0:01:13.7]} 27... Ne7 {[%clk 0:01:44.8]}
28. Qg4 {[%clk 0:01:08.6]} 28... d4 {[%clk 0:01:42.4]} 29. Rf2 {[%clk
0:01:00.2]} 29... Nxf5+ {[%clk 0:01:32.8]} 30. Kh2 {[%clk 0:00:41.2]} 30... Nxe3
{[%clk 0:01:17.9]} 31. Qe6+ {[%clk 0:00:40.2]} 31... Kh8 {[%clk 0:01:17.7]} 32.
Rxc2 {[%clk 0:00:40.3]} 32... Nxc2 {[%clk 0:01:16.8]} 33. Rg1 {[%clk 0:00:34.3]}
33... dxc3 {[%clk 0:01:13.8]} 34. Qf7 {[%clk 0:00:30.1]} 34... Rd2+ {[%clk
0:01:10.2]} 35. Kg3 {[%clk 0:00:27.1]} 35... cxb2 {[%clk 0:01:07.6]} 36. Rb1
{[%clk 0:00:14.9]} 36... Na3 {[%clk 0:01:06.5]} 37. Rxb2 {[%clk 0:00:13.4]}
37... Rxb2 {[%clk 0:01:06.1]} 38. e6 {[%clk 0:00:14.3]} 0-1

[Event "Early-Titled-Tuesday-Blitz-July-09-2024"]
[Site "Chess.com"]
[Date "2024.07.09"]
[Round "6"]
[White "LikeWater"]
[Black "Chessbard1972"]
[Result "1/2-1/2"]
[WhiteElo "2689"]
[BlackElo "2239"]
[TimeControl "180+1"]
[EndTime "9:08:00 PDT"]
[Termination "Game drawn - insufficient material"]

1. e4 {[%clk 0:03:00.9]} 1... e5 {[%clk 0:02:55.8]} 2. Nf3 {[%clk 0:02:58.5]}
2... Nc6 {[%clk 0:02:55.8]} 3. Bc4 {[%clk 0:02:51.8]} 3... Nf6 {[%clk
0:02:54.1]} 4. d4 {[%clk 0:02:51.5]} 4... exd4 {[%clk 0:02:53.5]} 5. O-O {[%clk
0:02:51.3]} 5... Nxe4 {[%clk 0:02:53]} 6. Re1 {[%clk 0:02:51.6]} 6... d5 {[%clk
0:02:53]} 7. Bxd5 {[%clk 0:02:52]} 7... Qxd5 {[%clk 0:02:53.1]} 8. Nc3 {[%clk
0:02:52.5]} 8... Qa5 {[%clk 0:02:52.7]} 9. Nxe4 {[%clk 0:02:52.4]} 9... Be6
{[%clk 0:02:52.9]} 10. Neg5 {[%clk 0:02:52.5]} 10... O-O-O {[%clk 0:02:52.5]}
11. Nxe6 {[%clk 0:02:52.6]} 11... fxe6 {[%clk 0:02:52.2]} 12. Rxe6 {[%clk
0:02:53.5]} 12... Qh5 {[%clk 0:02:48.2]} 13. Bg5 {[%clk 0:02:50]} 13... Rd7
{[%clk 0:02:28.8]} 14. Qe2 {[%clk 0:02:47.9]} 14... Bd6 {[%clk 0:02:28.1]} 15.
Re1 {[%clk 0:02:44.8]} 15... Bxh2+ {[%clk 0:01:40]} 16. Kf1 {[%clk 0:02:42.5]}
16... Bd6 {[%clk 0:01:24.3]} 17. Re8+ {[%clk 0:02:42.1]} 17... Rxe8 {[%clk
0:01:24.2]} 18. Qxe8+ {[%clk 0:02:43]} 18... Qxe8 {[%clk 0:01:22.4]} 19. Rxe8+
{[%clk 0:02:43.9]} 19... Nd8 {[%clk 0:01:22.4]} 20. Nxd4 {[%clk 0:02:44.4]}
20... h6 {[%clk 0:01:10.7]} 21. Bxd8 {[%clk 0:02:26.3]} 21... Rxd8 {[%clk
0:01:10.4]} 22. Rxd8+ {[%clk 0:02:27.2]} 22... Kxd8 {[%clk 0:01:10.7]} 23. Ne6+
{[%clk 0:02:28.1]} 23... Ke7 {[%clk 0:00:59.8]} 24. Nxg7 {[%clk 0:02:29]} 24...
Be5 {[%clk 0:00:56.2]} 25. Nf5+ {[%clk 0:02:28.4]} 25... Kf6 {[%clk 0:00:50.5]}
26. Nxh6 {[%clk 0:02:24.4]} 26... Bxb2 {[%clk 0:00:49.3]} 27. Ke2 {[%clk
0:02:22.9]} 27... Kg5 {[%clk 0:00:44.1]} 28. Nf7+ {[%clk 0:02:21.4]} 28... Kf6
{[%clk 0:00:43.9]} 29. Nd8 {[%clk 0:02:22.3]} 29... b6 {[%clk 0:00:41.4]} 30.
Nc6 {[%clk 0:02:21.3]} 30... a5 {[%clk 0:00:41.5]} 31. f4 {[%clk 0:02:21.6]}
31... Ke6 {[%clk 0:00:40.4]} 32. Kf3 {[%clk 0:02:14.6]} 32... Kd6 {[%clk
0:00:37.7]} 33. Nd8 {[%clk 0:02:11.4]} 33... Ke7 {[%clk 0:00:36.5]} 34. Nc6+
{[%clk 0:02:10.2]} 34... Kd6 {[%clk 0:00:36.8]} 35. Ne5 {[%clk 0:02:06.7]} 35...
Bxe5 {[%clk 0:00:36.1]} 36. fxe5+ {[%clk 0:02:07.6]} 36... Kxe5 {[%clk
0:00:36.6]} 37. Ke3 {[%clk 0:02:01.1]} 37... b5 {[%clk 0:00:34]} 38. g3 {[%clk
0:01:59.2]} 38... c5 {[%clk 0:00:32.7]} 39. c3 {[%clk 0:01:54.5]} 39... b4
{[%clk 0:00:28.1]} 40. Kd3 {[%clk 0:01:50.6]} 40... a4 {[%clk 0:00:26.5]} 41.
Kc2 {[%clk 0:01:21.1]} 41... Ke4 {[%clk 0:00:23.6]} 42. Kd2 {[%clk 0:01:01.5]}
42... Kf3 {[%clk 0:00:22.6]} 43. cxb4 {[%clk 0:01:00.5]} 43... cxb4 {[%clk
0:00:22.2]} 44. Kd3 {[%clk 0:01:01.1]} 44... Kxg3 {[%clk 0:00:22]} 45. Kc4
{[%clk 0:01:01.6]} 45... b3 {[%clk 0:00:22]} 46. axb3 {[%clk 0:01:02.5]} 46...
axb3 {[%clk 0:00:22.1]} 47. Kxb3 {[%clk 0:01:03.4]} 1/2-1/2

[Event "Early-Titled-Tuesday-Blitz-July-09-2024"]
[Site "Chess.com"]
[Date "2024.07.09"]
[Round "6"]
[White "BaylavChess"]
[Black "gafkens"]
[Result "0-1"]
[WhiteElo "2433"]
[BlackElo "2646"]
[TimeControl "180+1"]
[EndTime "9:08:00 PDT"]
[Termination "gafkens won by resignation"]

1. d4 {[%clk 0:03:00.9]} 1... g6 {[%clk 0:03:00.9]} 2. e4 {[%clk 0:03:00.2]}
2... Bg7 {[%clk 0:03:01.4]} 3. Nc3 {[%clk 0:03:00.5]} 3... d6 {[%clk 0:03:01.7]}
4. f4 {[%clk 0:03:00.6]} 4... Nf6 {[%clk 0:02:59.8]} 5. Nf3 {[%clk 0:03:00.6]}
5... c5 {[%clk 0:03:00.1]} 6. dxc5 {[%clk 0:03:00.6]} 6... Qa5 {[%clk
0:03:00.7]} 7. Bd3 {[%clk 0:02:57.5]} 7... Qxc5 {[%clk 0:03:00.4]} 8. Qe2 {[%clk
0:02:58.1]} 8... Bg4 {[%clk 0:03:00.4]} 9. Be3 {[%clk 0:02:56.3]} 9... Qa5
{[%clk 0:02:55.4]} 10. O-O {[%clk 0:02:55]} 10... Nc6 {[%clk 0:02:55]} 11. h3
{[%clk 0:02:55]} 11... Bxf3 {[%clk 0:02:54.9]} 12. Qxf3 {[%clk 0:02:55.9]} 12...
Nd7 {[%clk 0:02:54.9]} 13. Nd5 {[%clk 0:02:36.6]} 13... e6 {[%clk 0:02:48.1]}
14. Nc3 {[%clk 0:02:30]} 14... Nc5 {[%clk 0:02:44.1]} 15. a3 {[%clk 0:02:08.5]}
15... Bxc3 {[%clk 0:02:35.9]} 16. bxc3 {[%clk 0:02:07.6]} 16... Qxc3 {[%clk
0:02:35.7]} 17. Rfd1 {[%clk 0:01:20.2]} 17... Nxd3 {[%clk 0:02:13.9]} 18. cxd3
{[%clk 0:01:16.7]} 18... O-O {[%clk 0:02:10.7]} 19. d4 {[%clk 0:01:15]} 19... d5
{[%clk 0:01:54.9]} 20. exd5 {[%clk 0:00:55.9]} 20... exd5 {[%clk 0:01:54.7]} 21.
Rdc1 {[%clk 0:00:56.3]} 21... Qd3 {[%clk 0:01:50.6]} 22. Rd1 {[%clk 0:00:54.6]}
22... Qf5 {[%clk 0:01:03.7]} 23. g4 {[%clk 0:00:54.3]} 23... Qd7 {[%clk
0:01:04.3]} 24. f5 {[%clk 0:00:53.4]} 24... Rfe8 {[%clk 0:01:02.5]} 25. Bh6
{[%clk 0:00:35]} 25... Re4 {[%clk 0:01:00.9]} 26. fxg6 {[%clk 0:00:31.8]} 26...
fxg6 {[%clk 0:00:57.6]} 27. Rf1 {[%clk 0:00:32]} 27... Qe7 {[%clk 0:00:51.1]}
28. Qb3 {[%clk 0:00:20.6]} 28... Rd8 {[%clk 0:00:48.9]} 29. Rab1 {[%clk
0:00:19.3]} 29... b6 {[%clk 0:00:44.6]} 30. Rbd1 {[%clk 0:00:15.9]} 30... Nxd4
{[%clk 0:00:42.4]} 31. Qc3 {[%clk 0:00:14.2]} 31... Ne2+ {[%clk 0:00:42.2]} 0-1